bitfinex-derivatives/quotes_ETHF0:USTF0_20250929
["timestamp","ask_amount","ask_price","bid_price","bid_amount"]
[1759144181525,0.86972,4105.7,4105.6,1.11564472]
[1759144181526,0.76702,4105.7,4105.6,1.11564472]
[1759144181725,0.76702,4105.7,4105.6,1.33244472]
[1759144184127,0.43822,4105.7,4105.6,1.33244472]
[1759144184334,0.60262,4105.7,4105.6,1.33244472]
[1759144185531,0.60262,4105.7,4105.6,1.08544472]
[1759144185731,0.76702,4105.7,4105.6,1.08544472]
[1759144185939,0.76702,4105.7,4105.6,1.33244472]
[1759144187136,0.76702,4105.7,4105.6,1.08544472]
[1759144187735,0.76702,4105.7,4105.6,0.86864472]
[1759144188631,0.43822,4105.7,4105.6,1.08544472]
[1759144189847,0.43822,4105.7,4105.6,1.33244472]
[1759144191547,1.09541,4106.3,4106.2,0.4229]
[1759144191548,3.2078,4106.3,4106.2,0.4229]
[1759144191733,3.64596,4106.3,4106.2,0.7445]
[1759144191934,3.64596,4106.3,4106.2,1.08544472]
[1759144191935,3.81036,4106.3,4106.2,1.08544472]
[1759144192246,3.97476,4106.3,4106.2,1.08544472]
[1759144192543,4.07746,4106.3,4106.2,0.66254472]
[1759144192948,3.97476,4106.3,4106.2,0.86864472]
[1759144193945,4.07746,4106.3,4106.2,0.06081472]
[1759144194141,0.87258,4106.1,4106.0,0.0243]
[1759144194349,1.20368,4106.1,4106.0,0.0243]
[1759144196043,0.43822,4105.7,4105.6,0.5421]
[1759144196242,4.41152,4105.7,4105.6,0.5421]
[1759144196739,4.41152,4105.7,4105.3,1.75019572]
[1759144196740,0.87266,4105.4,4105.3,2.51229572]
[1759144197045,0.87266,4105.4,4105.3,2.75929572]
[1759144197543,0.65716,4105.4,4105.3,2.75929572]
[1759144197735,0.43826,4105.4,4105.3,2.75929572]
[1759144198139,0.43826,4105.4,4105.3,2.51229572]
[1759144198342,0.43826,4105.4,4105.3,2.75929572]
[1759144199847,0.87266,4105.4,4105.3,2.75929572]
[1759144200048,1.20376,4105.4,4105.3,2.75929572]
[1759144200944,0.87266,4105.4,4105.3,2.75929572]
[1759144201340,1.20378,4105.2,4105.1,2.02149572]
[1759144201546,1.20378,4105.2,4105.1,0.0243]
[1759144201547,4.41158,4105.2,4105.1,0.0243]
[1759144202254,0.87269,4105.1,4105.0,0.00295847]
[1759144202549,0.87269,4105.1,4103.1,4.37548932]
[1759144202550,0.43855,4102.6,4102.5,5.14867612]
[1759144202845,0.43871,4101.1,4101.0,0.4583]
[1759144203050,0.43871,4101.1,4101.0,0.6652]
[1759144203350,0.44123875,4101.1,4101.0,0.66697385]
[1759144203537,0.44123875,4101.1,4101.0,0.88697385]
[1759144204042,0.00252875,4101.1,4101.0,0.88697385]
[1759144206846,0.00252875,4101.1,4101.0,5.88697385]
[1759144207349,0.43867,4101.6,4101.0,5.55177385]
[1759144207649,3.2078,4101.9,4101.7,0.4269]
[1759144207841,3.2078,4101.9,4101.8,0.7621]
[1759144208449,3.21048668,4101.9,4101.8,0.7621]
[1759144211750,3.21048668,4101.9,4101.8,0.77377118]
[1759144214655,3.21048668,4101.9,4101.8,0.78544252]
[1759144216153,3.21048668,4101.9,4101.8,0.57324252]
[1759144216359,3.21048668,4101.9,4101.8,0.35854252]
[1759144216548,3.21048668,4101.9,4101.5,0.1231]
[1759144216549,0.43866,4101.6,4101.5,0.1231]
[1759144216755,0.68966,4101.6,4101.5,0.4383]
[1759144218756,0.43869,4101.3,4101.2,0.3152]
[1759144218968,3.89749,4101.3,4101.2,0.3152]
[1759144220148,3.64649,4101.3,4101.2,0.3152]
[1759144220458,3.64649,4101.3,4101.2,0.5299]
[1759144220663,3.64649,4101.3,4101.2,0.754]
[1759144221366,3.64649,4101.3,4101.2,0.76852162]
[1759144221668,3.64649,4101.3,4101.2,0.54442162]
[1759144222063,3.64649,4101.3,4101.2,0.76852162]
[1759144223565,3.2078,4101.3,4101.2,0.76852162]
[1759144223951,0.43869,4101.4,4101.3,0.7513]
[1759144224461,0.43869,4101.4,4101.3,0.76582162]
[1759144224852,3.2078,4101.8,4101.7,0.7646]
[1759144225067,3.64644,4101.8,4101.7,0.7646]
[1759144225364,3.64644,4101.8,4101.7,0.77912162]
[1759144226062,3.64644,4101.8,4101.7,0.34302162]
[1759144226266,3.64644,4101.8,4101.7,0.77912162]
[1759144230463,4.25610219,4101.8,4101.7,0.77912162]
[1759144231264,4.25610219,4101.8,4101.7,0.57052162]
[1759144232070,4.25610219,4101.8,4101.7,0.77912162]
[1759144232373,4.25610219,4101.8,4101.7,0.54144439]
[1759144232876,4.25610219,4101.8,4101.7,0.10534439]
[1759144234367,4.25610219,4101.8,4101.7,0.33284439]
[1759144235665,4.25610219,4101.8,4101.7,0.54144439]
[1759144237270,3.81746219,4101.8,4101.7,0.54144439]
[1759144237468,4.25610219,4101.8,4101.7,0.54144439]
[1759144238067,3.64644,4101.8,4101.7,0.54144439]
[1759144238273,3.64644,4101.8,4101.7,0.98009439]
[1759144238464,3.64644,4101.8,4101.7,5.54144439]
[1759144239266,3.64644,4101.8,4101.7,5.98009439]
[1759144239470,0.00268668,4101.9,4101.8,0.7646]
[1759144239668,0.44131668,4101.9,4101.8,1.0156]
[1759144240473,0.44131668,4101.9,4101.8,1.03012162]
[1759144242179,0.00268668,4101.9,4101.8,1.03012162]
[1759144242375,0.00268668,4101.9,4101.8,1.46876162]
[1759144243973,0.00268668,4101.9,4101.8,6.46876162]
[1759144246181,0.00268668,4101.9,4101.8,1.46876162]
[1759144246570,0.00268668,4101.9,4101.8,6.46876162]
[1759144248181,3.64633,4102.8,4102.7,0.7646]
[1759144248479,3.64633,4102.8,4102.7,0.77912162]
[1759144249073,3.64942629,4102.8,4102.7,0.77912162]
[1759144255282,3.64942629,4102.8,4102.7,1.02912162]
[1759144256078,3.64942629,4102.8,4102.7,0.77912162]
[1759144256278,3.64942629,4102.8,4102.7,1.02912162]
[1759144256480,3.64942629,4102.8,4102.7,1.46766162]
[1759144256677,3.21089629,4102.8,4102.7,1.46766162]
[1759144256986,0.00309629,4102.8,4102.7,1.46766162]
[1759144257883,3.64628,4103.3,4103.2,0.76]
[1759144258190,3.64628,4103.3,4103.2,1.01]
[1759144258386,3.64628,4103.3,4103.2,0.3106]
[1759144258586,3.64628,4103.3,4103.2,0.32512162]
[1759144258779,3.6488555,4103.3,4103.2,0.32512162]
[1759144259483,3.6488555,4103.3,4103.2,0.77452162]
[1759144260987,3.6488555,4103.3,4103.2,0.54832162]
[1759144261286,3.6488555,4103.3,4103.2,0.01452162]
[1759144261487,1.09633,4102.9,4102.6,0.3106]
[1759144261795,3.64634,4102.7,4102.6,0.3106]
[1759144262589,3.64634,4102.7,4102.6,0.5338]
[1759144266796,3.64634,4102.7,4102.6,0.3106]
[1759144266992,3.64634,4102.7,4102.5,0.1244]
[1759144266993,0.43856,4102.6,4102.5,0.1244]
[1759144267303,0.43856,4102.6,4102.5,0.435]
[1759144272598,0.43856,4102.6,4102.5,0.6582]
[1759144273595,0.43856,4102.6,4102.5,0.8844]
[1759144277106,0.43856,4102.6,4102.5,0.435]
[1759144277506,0.43856,4102.6,4102.5,0.6484]
[1759144278515,0.43856,4102.6,4102.5,0.8626]
[1759144280515,0.43856,4102.6,4102.5,0.16029]
[1759144280516,1.13116,4102.6,4102.5,0.16029]
[1759144281516,1.1885,4102.3,4102.2,0.0243]
[1759144281914,0.43862,4102.1,4102.0,0.1244]
[1759144282108,4.08752,4102.1,4102.0,0.3378]
[1759144282317,4.39632,4102.1,4102.0,0.3378]
[1759144282509,4.39632,4102.1,4102.0,0.6734]
[1759144282716,4.39632,4102.1,4102.0,0.8876]
[1759144282918,4.08752,4102.1,4102.0,0.8876]
[1759144284421,4.41442,4102.1,4102.0,0.8876]
[1759144285323,4.08752,4102.1,4102.0,0.8876]
[1759144286826,4.41442,4102.1,4102.0,0.8876]
[1759144289020,4.08752,4102.1,4102.0,0.8876]
[1759144292127,3.2078,4102.1,4102.0,2.63829415]
[1759144292424,3.64643,4102.1,4102.0,0.8876]
[1759144293115,0.43863,4102.1,4102.0,0.8876]
[1759144293318,0.43863,4102.1,4102.0,1.32624]
[1759144293714,0.43862,4102.3,4102.1,0.43863]
[1759144293914,3.5347,4102.7,4102.2,2.48432069]
[1759144294124,3.64637,4102.7,4102.6,0.7318]
[1759144294821,3.86237,4102.7,4102.6,0.7318]
[1759144297231,3.4238,4102.7,4102.6,0.7318]
[1759144297427,3.64636,4102.7,4102.6,2.48432069]
[1759144298131,3.64636,4102.7,4102.6,1.17038]
[1759144298132,3.2078,4102.7,4102.6,1.17038]
[1759144298337,3.2078,4102.7,4102.6,6.17038]
[1759144299329,3.2078,4102.7,4102.6,2.73059369]
[1759144299330,4.40027,4102.7,4102.6,2.73059369]
[1759144300127,4.07337,4102.7,4102.6,2.73059369]
[1759144300827,3.4238,4102.7,4102.6,0.9798]
[1759144301035,3.86237,4102.7,4102.6,3.16850282]
[1759144301337,3.4238,4102.7,4102.6,3.16850282]
[1759144301532,3.2078,4102.7,4102.6,3.16850282]
[1759144302133,3.2078,4102.7,4102.6,3.20180948]
[1759144302334,3.64637,4102.7,4102.6,3.20180948]
[1759144302637,3.64637,4102.7,4102.6,3.50720858]
[1759144302933,3.2078,4102.7,4102.6,3.50720858]
[1759144304127,0.65453,4103.1,4103.0,0.8615]
[1759144304328,0.65453,4103.1,4103.0,1.1095]
[1759144304522,0.65453,4103.1,4103.0,1.4148991]
[1759144304724,1.19243,4103.1,4103.0,1.4148991]
[1759144305327,1.19243,4103.1,4103.0,1.44820576]
[1759144305735,0.86553,4103.1,4103.0,1.44820576]
[1759144306631,3.2103755,4103.3,4103.2,0.7318]
[1759144306825,3.2078,4103.8,4103.7,0.43846]
[1759144307025,3.64625,4103.8,4103.7,0.9798]
[1759144307226,4.07325,4103.8,4103.7,1.01310666]
[1759144307539,4.40015,4103.8,4103.7,1.31850576]
[1759144307840,4.07534007,4103.8,4103.7,1.31850576]
[1759144308535,4.40224007,4103.8,4103.7,1.31850576]
[1759144312044,4.07534007,4103.8,4103.7,1.31850576]
[1759144312539,3.64834007,4103.8,4103.7,1.31850576]
[1759144313933,3.86874007,4103.8,4103.7,1.31850576]
[1759144314642,3.64834007,4103.8,4103.7,1.31850576]
[1759144315241,3.86874007,4103.8,4103.7,1.31850576]
[1759144316942,4.39404007,4103.8,4103.7,1.31850576]
[1759144319942,4.39404007,4103.8,4103.7,0.33870576]
[1759144320142,9.39404007,4103.8,4103.7,0.33870576]
[1759144321740,4.39404007,4103.8,4103.7,0.33870576]
[1759144321935,4.39404007,4103.8,4103.7,0.64730576]
[1759144322140,4.39404007,4103.8,4103.7,0.33870576]
[1759144322539,4.39404007,4103.8,4103.5,0.2723]
[1759144322540,0.74667,4103.6,4103.5,0.0243]
[1759144322944,0.74671,4103.2,4103.1,0.3086]
[1759144323552,0.67334,4102.9,4102.8,0.5566]
[1759144323736,0.74674,4102.9,4102.8,0.5566]
[1759144323941,0.2348,4102.6,4102.5,0.1297]
[1759144324147,0.74678,4102.6,4102.5,0.6863]
[1759144325144,0.67338,4102.6,4102.5,0.909]
[1759144327256,0.2348,4102.6,4102.5,1.1163]
[1759144327745,0.67338,4102.6,4102.5,1.1163]
[1759144328343,0.0734,4103.2,4102.5,1.1163]
[1759144328543,1.09624,4103.4,4102.5,1.1163]
[1759144328544,0.67333,4103.1,4103.0,0.6616]
[1759144328751,0.55593,4103.1,4103.0,1.1169]
[1759144328943,0.43853,4103.1,4103.0,1.1169]
[1759144329146,0.55593,4103.1,4103.0,1.1169]
[1759144329854,0.43853,4103.1,4103.0,1.1169]
[1759144330350,0.67327,4103.6,4103.5,0.353]
[1759144330551,0.67327,4103.6,4103.5,0.6616]
[1759144331647,0.67327,4103.6,4103.5,0.8689]
[1759144338957,0.43847,4103.6,4103.5,0.8689]
[1759144340354,0.55587,4103.6,4103.5,0.8689]
[1759144340558,0.67327,4103.6,4103.5,0.8689]
[1759144343053,0.74669,4103.4,4103.3,0.0243]
[1759144343557,0.67332,4103.1,4103.0,0.6657]
[1759144344263,0.67332,4103.1,4103.0,0.8759]
[1759144346567,3.64834007,4103.8,4103.7,0.7399]
[1759144347163,3.76584007,4103.8,4103.7,0.7399]
[1759144347660,3.64834007,4103.8,4103.7,0.7399]
[1759144348557,3.20989007,4103.8,4103.7,0.7399]
[1759144348764,3.64834007,4103.8,4103.7,0.7399]
[1759144349251,3.20989007,4103.8,4103.7,0.7399]
[1759144349455,3.64618,4104.5,4104.4,0.2093]
[1759144349663,3.64618,4104.5,4104.4,0.7399]
[1759144350059,3.76368,4104.5,4104.4,0.7399]
[1759144350456,3.76548528,4104.5,4104.4,0.74277356]
[1759144353366,0.55768528,4104.5,4104.4,0.74277356]
[1759144353566,0.00180528,4104.5,4104.4,0.74277356]
[1759144353758,0.44018528,4104.5,4104.4,0.74277356]
[1759144353954,0.44018528,4104.5,4104.4,1.18116356]
[1759144353955,0.00180528,4104.5,4104.4,1.18116356]
[1759144354359,0.00180528,4104.5,4104.4,2.92737953]
[1759144355567,0.00180528,4104.5,4104.4,2.48898953]
[1759144355970,0.44017528,4104.5,4104.4,2.48898953]
[1759144356269,0.44017528,4104.5,4104.4,0.74277356]
[1759144356952,0.55767528,4104.5,4104.4,0.74277356]
[1759144357157,0.67517528,4104.5,4104.4,0.99077356]
[1759144362061,0.44017528,4104.5,4104.4,0.99077356]
[1759144362368,0.55767528,4104.5,4104.4,0.99077356]
[1759144364373,0.44017528,4104.5,4104.4,0.99077356]
[1759144365773,0.55767528,4104.5,4104.4,0.99077356]
[1759144368369,0.67517528,4104.5,4104.4,0.31457356]
[1759144368674,0.67517528,4104.5,4104.4,0.52387356]
[1759144368975,0.67517528,4104.5,4104.4,0.74277356]
[1759144372667,0.55767528,4104.5,4104.4,0.74277356]
[1759144376771,0.67477528,4104.5,4104.4,0.75247356]
[1759144377579,0.4511,4104.0,4103.9,1.74621597]
[1759144377773,1.19716,4103.7,4103.6,1.95921597]
[1759144378281,1.19716,4103.7,4103.6,2.18411597]
[1759144378484,1.19716,4103.7,4103.6,2.18717604]
[1759144379475,1.19716,4103.7,4103.6,2.52647604]
[1759144379784,0.64766,4103.7,4103.6,2.52647604]
[1759144382080,0.64766,4103.7,4103.6,0.78026007]
[1759144382081,0.97126,4103.7,4103.6,0.78026007]
[1759144382484,1.19716,4103.7,4103.6,0.78026007]
[1759144383382,1.19716,4103.7,4103.6,1.02826007]
[1759144383577,0.43846,4103.7,4103.6,1.02826007]
[1759144384388,0.43846,4103.7,4103.6,2.77447604]
[1759144384984,0.43846,4103.7,4103.6,2.52647604]
[1759144385180,0.97126,4103.7,4103.6,2.77447604]
[1759144385392,1.19716,4103.7,4103.6,2.77447604]
[1759144385587,1.19716,4103.7,4103.6,1.02826007]
[1759144385789,1.19716,4103.7,4103.6,2.77447604]
[1759144385989,1.19716,4103.7,4103.6,1.02826007]
[1759144386393,1.19716,4103.7,4103.6,2.77447604]
[1759144386894,1.19716,4103.7,4103.6,1.02826007]
[1759144387788,1.19716,4103.7,4103.6,0.78026007]
[1759144387994,1.19716,4103.7,4103.6,1.02826007]
[1759144389192,1.19716,4103.7,4103.6,0.25106007]
[1759144389490,6.19716,4103.7,4103.6,7e-08]
[1759144401110,1.19716,4103.7,4103.6,7e-08]
[1759144404115,1.34169,4103.5,4103.4,7e-08]
[1759144404317,1.21184,4102.1,4102.0,0.8743]
[1759144405113,1.21184,4102.1,4102.0,0.87741552]
[1759144405312,1.21184,4102.1,4102.0,0.75461552]
[1759144406815,1.21184,4102.1,4102.0,0.00311552]
[1759144409814,1.45984,4102.1,4102.0,0.00311552]
[1759144414513,1.21184,4102.1,4102.0,0.88851552]
[1759144417020,1.21184,4102.1,4102.0,5.52e-06]
[1759144418014,1.45984,4102.1,4102.0,5.52e-06]
[1759144437834,1.21184,4102.1,4102.0,0.54180552]
[1759144438035,1.21184,4102.1,4102.0,0.88410552]
[1759144438237,0.87134,4102.1,4102.0,0.88410552]
[1759144438945,1.21194,4102.1,4102.0,0.88410552]
[1759144439536,0.87134,4102.1,4102.0,0.88410552]
[1759144439740,0.43864,4102.1,4102.0,5.88410552]
[1759144440539,1.00194,4102.1,4102.0,5.88410552]
[1759144440836,0.88554,4102.1,4102.0,5.52e-06]
[1759144443735,0.88558,4101.6,4101.5,1e-05]
[1759144443939,1.22618,4101.6,4101.5,1e-05]
[1759144444536,1.22618,4101.6,4100.5,0.93950597]
[1759144444537,0.43879,4100.6,4100.5,0.93950597]
[1759144444744,0.2242,4099.2,4099.1,2.18867333]
[1759144444932,1.22644,4099.2,4099.1,0.75999721]
[1759144445242,1.22644,4099.2,4099.1,0.00259721]
[1759144446130,1.22644,4099.2,4098.7,0.3342]
[1759144446453,1.22644,4099.2,4096.6,1.09804]
[1759144446454,0.43918,4096.9,4096.8,0.2140159]
[1759144446646,0.2227,4097.1,4097.0,0.5499]
[1759144446835,0.66186,4097.1,4097.0,0.5499]
[1759144447031,0.1264,4098.0,4097.0,5.5499]
[1759144447335,0.43912,4097.6,4097.5,0.5499]
[1759144447842,0.43911,4097.7,4097.5,5.5499]
[1759144448042,0.43911,4097.7,4097.5,0.5499]
[1759144448244,0.35780938,4097.7,4097.6,0.7574]
[1759144448540,0.35780938,4097.7,4097.6,5.7574]
[1759144448934,0.35780938,4097.7,4097.6,0.7574]
[1759144449935,0.43908,4097.9,4097.7,0.3342]
[1759144450142,0.43908,4097.9,4097.8,0.7574]
[1759144454942,0.00241714,4098.0,4097.9,0.3338]
[1759144455149,0.44148714,4098.0,4097.9,1.0032]
[1759144455448,1.21918714,4098.0,4097.9,1.0032]
[1759144459448,1.21918714,4098.0,4097.9,0.3338]
[1759144459651,1.21918714,4098.0,4097.9,0.7532]
[1759144462944,1.35408714,4098.0,4097.9,0.2135]
[1759144463144,0.43914,4097.3,4097.2,0.7532]
[1759144463353,1.21684,4097.3,4097.2,1.0032]
[1759144463541,0.43914,4097.3,4097.2,1.0032]
[1759144464344,1.17584,4097.3,4097.2,1.0032]
[1759144465054,0.43914,4097.3,4097.2,1.0032]
[1759144466151,0.43915,4097.3,4097.2,1.0178]
[1759144467054,0.43914,4097.4,4097.2,1.11986]
[1759144467249,0.43914,4097.4,4097.3,0.7631]
[1759144467448,0.64744,4097.4,4097.3,0.7631]
[1759144467845,0.43914,4097.4,4097.3,0.7631]
[1759144468155,0.64744,4097.4,4097.3,0.7631]
[1759144469859,0.2083,4097.4,4097.3,0.7631]
[1759144470654,0.64744,4097.4,4097.3,0.7631]
[1759144470956,0.2083,4097.4,4097.3,0.7631]
[1759144471151,0.64744,4097.4,4097.3,0.7631]
[1759144471547,1.17584,4097.4,4097.3,0.7631]
[1759144472152,0.7367,4097.4,4097.0,0.1371321]
[1759144472448,0.7367,4097.4,4096.8,0.0064159]
[1759144472449,0.43933,4095.7,4095.5,0.1347]
[1759144472859,5.0,4095.6,4095.5,0.1347]
[1759144473259,5.0,4095.6,4095.5,0.1365375]
[1759144474262,5.0,4095.6,4095.5,0.4736375]
[1759144476856,0.69733,4095.7,4095.6,0.3371]
[1759144477051,0.43933,4095.7,4095.6,0.5459]
[1759144477357,0.43933,4095.7,4095.6,0.7631]
[1759144477560,0.43933,4095.7,4095.6,0.8521]
[1759144482866,0.43933,4095.7,4095.6,0.8521]
[1759144484465,0.43931,4095.9,4095.8,0.7631]
[1759144484765,0.43922,4096.7,4096.6,0.5459]
[1759144485667,0.43922,4096.7,4096.6,0.7631]
[1759144488970,0.43922,4096.7,4096.6,0.3371]
[1759144489172,1.01280327,4096.7,4096.6,0.3371]
[1759144489672,1.0128023,4096.7,4096.6,0.3371]
[1759144489866,1.0128023,4096.7,4096.6,0.7631]
[1759144490074,0.43922,4096.7,4096.6,0.7631]
[1759144495067,0.43922,4096.7,4096.6,0.3371]
[1759144496068,0.43925,4096.3,4096.2,0.4549]
[1759144497774,0.43925,4096.3,4096.2,0.4341]
[1759144498072,0.43925,4096.3,4096.2,0.7629]
[1759144502875,3.64705,4096.3,4096.2,0.7629]
[1759144503876,3.64705,4096.3,4096.2,0.17630524]
[1759144504075,4.23096522,4096.3,4096.2,5.24e-06]
[1759144504279,3.64705,4096.3,4096.2,5.24e-06]
[1759144504481,3.64705,4096.3,4096.2,0.21910524]
[1759144504682,3.64705,4096.3,4096.2,5.24e-06]
[1759144504882,3.64705,4096.3,4096.2,0.43410524]
[1759144505576,3.64705,4096.3,4096.2,0.21910524]
[1759144506583,3.64705,4096.3,4096.2,0.43410524]
[1759144512279,0.43925,4096.4,4096.3,0.3288]
[1759144512474,0.43923,4096.5,4096.4,0.3288]
[1759144512681,0.43923,4096.5,4096.4,0.7629]
[1759144513182,3.64699,4096.9,4096.8,0.4236]
[1759144513377,3.64699,4096.9,4096.8,0.7614]
[1759144514185,3.2078,4096.9,4096.8,0.7614]
[1759144514478,3.64698,4096.9,4096.8,0.7614]
[1759144514674,0.43916,4097.1,4096.9,0.43918]
[1759144514873,0.43914,4097.3,4097.0,0.8874]
[1759144515073,0.43914,4097.3,4097.2,0.4236]
[1759144515281,3.2078,4097.9,4097.8,0.4236]
[1759144515485,3.64688,4097.9,4097.8,0.7614]
[1759144519987,3.64688,4097.9,4097.8,1.0164]
[1759144523288,0.43908,4097.9,4097.8,1.0164]
[1759144523489,0.00241714,4098.0,4097.9,0.7614]
[1759144523885,0.00241714,4098.0,4097.9,5.7614]
[1759144524393,0.44148714,4098.0,4097.9,5.7614]
[1759144525294,0.00241714,4098.0,4097.9,5.7614]
[1759144525492,0.44148714,4098.0,4097.9,5.7614]
[1759144526193,0.00241714,4098.0,4097.9,5.7614]
[1759144526493,0.00241714,4098.0,4097.9,6.20048]
[1759144527194,3.2078,4098.4,4098.3,0.7703]
[1759144527494,0.43903,4098.4,4098.3,1.0243]
[1759144528195,3.2078,4098.9,4098.8,0.7703]
[1759144528397,3.21090256,4098.9,4098.8,1.02624885]
[1759144529295,0.44207256,4098.9,4098.8,1.02624885]
[1759144530992,0.00310256,4098.9,4098.8,6.46522885]
[1759144531498,1.09717,4099.9,4098.8,6.46522885]
[1759144531499,0.43891,4099.6,4099.5,0.5731]
[1759144531696,0.43891,4099.6,4099.5,1.1607]
[1759144532396,0.44199661,4099.6,4099.5,1.1607]
[1759144532596,0.00308661,4099.6,4099.5,1.1607]
[1759144532903,0.00308661,4099.6,4099.5,6.1607]
[1759144533504,0.44198661,4099.6,4099.5,6.1607]
[1759144533704,0.44198661,4099.6,4099.5,1.1607]
[1759144533901,0.44198661,4099.6,4099.5,0.9067]
[1759144534304,0.44198661,4099.6,4099.5,0.47]
[1759144534808,5.44198661,4099.6,4099.5,0.47]
[1759144535806,0.44198661,4099.6,4099.5,0.47]
[1759144536005,5.44198661,4099.6,4099.5,0.47]
[1759144538306,1.09729,4099.5,4099.1,0.253]
[1759144538703,0.43894,4099.2,4099.1,0.253]
[1759144538904,1.09729,4099.5,4099.0,0.3538]
[1759144538905,0.43895,4099.1,4099.0,0.3538]
[1759144539112,0.43895,4099.1,4099.0,0.6068]
[1759144539903,0.43895,4099.1,4099.0,0.3538]
[1759144540108,0.43895,4099.1,4099.0,0.1364]
[1759144540309,0.43895,4099.1,4099.0,0.47]
[1759144540702,0.43895,4099.1,4099.0,0.9067]
[1759144540900,0.43895,4099.1,4099.0,0.6874]
[1759144541501,0.43895,4099.1,4099.0,0.9067]
[1759144541909,0.00308661,4099.6,4099.5,0.9067]
[1759144542619,0.44197661,4099.6,4099.5,0.9067]
[1759144544405,0.44197661,4099.6,4099.5,1.1607]
[1759144545007,0.44197661,4099.6,4099.5,0.47]
[1759144545818,0.44197661,4099.6,4099.5,0.9067]
[1759144546712,0.44197661,4099.6,4099.5,0.6874]
[1759144547015,0.43892,4099.4,4099.3,0.0243]
[1759144548014,0.43892,4099.4,4099.3,0.4367]
[1759144548915,0.43892,4099.4,4099.3,0.7703]
[1759144555721,0.43892,4099.4,4099.3,1.0233]
[1759144557028,0.43892,4099.4,4099.3,0.7703]
[1759144557230,0.43892,4099.4,4099.3,1.0233]
[1759144559029,0.43892,4099.4,4099.3,1.46223]
[1759144559332,0.43891,4099.5,4099.4,0.7684]
[1759144560032,0.00308661,4099.6,4099.5,0.1303]
[1759144560233,0.44197661,4099.6,4099.5,0.8987]
[1759144561332,0.00308661,4099.6,4099.5,1.5906]
[1759144561929,0.43884,4100.1,4100.0,0.8987]
[1759144562135,0.43884,4100.1,4100.0,1.1517]
[1759144562328,0.43884,4100.1,4100.0,6.1517]
[1759144562833,0.44067387,4100.1,4100.0,0.8987]
[1759144563033,0.44067387,4100.1,4100.0,0.1303]
[1759144563427,0.44067387,4100.1,4100.0,0.4644]
[1759144563937,0.44067387,4100.1,4100.0,0.6821]
[1759144564637,0.44067387,4100.1,4100.0,0.4644]
[1759144564934,0.44067387,4100.1,4099.5,0.1303]
[1759144564935,0.43887,4099.9,4099.8,0.5871]
[1759144565731,0.1646,4099.3,4099.1,0.0243]
[1759144566039,0.6004,4099.2,4099.1,0.0243]
[1759144566238,1.03934,4099.2,4099.1,0.0243]
[1759144566435,1.03934,4099.2,4099.0,0.3894]
[1759144567234,1.03934,4099.2,4099.1,0.2177]
[1759144567537,0.87474,4099.2,4099.1,0.2177]
[1759144567738,0.87474,4099.2,4099.1,0.5518]
[1759144569241,0.87474,4099.2,4099.1,0.7684]
[1759144569741,0.43894,4099.2,4099.1,0.7684]
[1759144570340,0.43894,4099.2,4099.1,2.51986509]
[1759144570639,0.43892,4099.4,4099.3,0.7684]
[1759144570839,0.43892,4099.4,4099.3,2.51986509]
[1759144572445,3.64667,4099.8,4099.7,0.7684]
[1759144572646,3.64667,4099.8,4099.7,1.0204]
[1759144573132,0.43887,4099.9,4099.8,0.5518]
[1759144573333,0.43887,4099.9,4099.8,3.9762]
[1759144573835,0.43887,4099.9,4099.8,5.72787996]
[1759144574043,0.43887,4099.9,4099.8,5.97987996]
[1759144577543,0.87437,4099.9,4099.8,5.72787996]
[1759144577743,0.87437,4099.9,4099.8,4.2282]
[1759144578751,0.43887,4099.9,4099.8,4.2282]
[1759144579754,0.43887,4099.9,4099.8,5.97987996]
[1759144580554,0.43885,4100.0,4099.9,0.7549]
[1759144580753,0.43885,4100.0,4099.9,1.0069]
[1759144580950,0.00183387,4100.1,4099.9,1.0069]
[1759144581158,0.00183387,4100.1,4100.0,0.8805]
[1759144581461,3.64657,4100.8,4100.7,0.7549]
[1759144581753,0.43877,4100.8,4100.7,1.0069]
[1759144582453,0.44131446,4100.8,4100.7,1.0069]
[1759144585854,0.00254446,4100.8,4100.7,1.0069]
[1759144586056,0.01245,4101.5,4101.1,0.3246]
[1759144586254,0.01245,4101.5,4101.4,0.7697]
[1759144586765,0.01245,4101.5,4101.4,1.0217]
[1759144586962,0.01463157,4101.5,4101.4,1.0217]
[1759144587161,3.2078,4102.4,4102.0,0.1326]
[1759144587360,3.6464,4102.4,4102.3,0.7697]
[1759144587557,3.8536,4102.4,4102.3,1.0217]
[1759144588364,3.8553768,4102.4,4102.3,1.0234915]
[1759144588560,4.0785768,4102.4,4102.3,1.0234915]
[1759144588761,9.4055768,4102.4,4102.3,1.5e-06]
[1759144589057,0.7574,4101.3,4101.2,3.4303]
[1759144589259,0.4304,4100.8,4100.7,3.4303]
[1759144589464,0.7574,4100.8,4100.7,3.6833]
[1759144589652,1.19617,4100.8,4100.7,3.6833]
[1759144589855,0.43877,4100.8,4100.7,3.90804727]
[1759144590456,1.19617,4100.8,4100.7,3.65504727]
[1759144590656,1.19617,4100.8,4100.7,3.90804727]
[1759144590861,1.19617,4100.8,4100.7,4.23264727]
[1759144591256,0.86917,4100.8,4100.7,4.23264727]
[1759144592566,1.19617,4100.8,4100.7,0.00214727]
[1759144592770,1.19617,4100.8,4100.7,1.02484727]
[1759144592965,0.86917,4100.8,4100.7,1.02484727]
[1759144593269,0.64597,4100.8,4100.7,1.02484727]
[1759144593764,0.43877,4100.8,4100.7,1.02484727]
[1759144594164,0.64597,4100.8,4100.7,1.02484727]
[1759144594560,1.19617,4100.8,4100.7,1.02484727]
[1759144596869,1.19617,4100.8,4100.7,0.77184727]
[1759144597167,0.86917,4100.8,4100.7,1.02484727]
[1759144597664,0.64597,4100.8,4100.7,1.02484727]
[1759144597871,0.43877,4100.8,4100.7,1.02484727]
[1759144599465,0.43877,4100.8,4100.7,4.23264727]
[1759144600164,0.43875,4100.9,4100.7,3.90804727]
[1759144600367,0.43875,4100.9,4100.8,0.7697]
[1759144601170,0.43875,4101.0,4100.8,0.7697]